[Event "Titled Tuesday Blitz March 08 Early 2022"]
[White "Chigaev, Maksim"]
[Black "Plotnikov, Pavel"]
[WhiteFideId "4108116"]
[BlackFideId "4170342"]
[WhiteElo "2502"]
[BlackElo "2298"]
[Result "1-0"]
[Round "05"]
[TimeControl "180+1"]
[Date "2022.03.09"]
[WhiteClock "0:00:07"]
[BlackClock "0:00:10"]

1. d4 {[%clk 0:03:00]}  e6 {[%clk 0:03:00]} 2. c4 {[%clk 0:02:58]}  f5 {[%clk 0:03:00]} 3. e4 {[%clk 0:02:54]}  fxe4 {[%clk 0:03:00]} 4. Nc3 {[%clk 0:02:54]}  Nf6 {[%clk 0:02:55]} 5. Bg5 {[%clk 0:02:51]}  Bb4 {[%clk 0:02:53]} 6. Ne2 {[%clk 0:02:51]}  h6 {[%clk 0:02:45]} 7. Bd2 {[%clk 0:02:43]}  O-O {[%clk 0:02:39]} 8. d5 {[%clk 0:02:38]}  exd5 {[%clk 0:02:30]} 9. cxd5 {[%clk 0:02:39]}  d6 {[%clk 0:02:28]} 10. Ng3 {[%clk 0:02:31]}  e3 {[%clk 0:02:22]} 11. Bxe3 {[%clk 0:02:24]}  Ng4 {[%clk 0:02:06]} 12. Bd4 {[%clk 0:02:02]}  c5 {[%clk 0:02:05]} 13. dxc6 {[%clk 0:02:02]}  Nxc6 {[%clk 0:02:05]} 14. Be2 {[%clk 0:01:31]}  Qh4 {[%clk 0:01:40]} 15. Bxg4 {[%clk 0:01:21]}  Bxg4 {[%clk 0:01:39]} 16. Qb3+ {[%clk 0:01:22]}  Kh8 {[%clk 0:01:31]} 17. O-O {[%clk 0:01:11]}  Nxd4 {[%clk 0:01:28]} 18. Qxb4 {[%clk 0:01:11]}  Rf4 {[%clk 0:01:01]} 19. Qxd6 {[%clk 0:01:01]}  Raf8 {[%clk 0:01:01]} 20. Nd5 {[%clk 0:00:52]}  R4f7 {[%clk 0:00:35]} 21. Ne3 {[%clk 0:00:40]}  Ne2+ {[%clk 0:00:33]} 22. Kh1 {[%clk 0:00:29]}  Rxf2 {[%clk 0:00:28]} 23. Rxf2 {[%clk 0:00:24]}  Rxf2 {[%clk 0:00:28]} 24. Nxe2 {[%clk 0:00:15]}  Rxe2 {[%clk 0:00:22]} 25. Nf1 {[%clk 0:00:03]}  Qf2 {[%clk 0:00:19]} 26. Qg3 {[%clk 0:00:02]}  Qxg3 {[%clk 0:00:16]} 27. Nxg3 {[%clk 0:00:02]}  Rxb2 {[%clk 0:00:16]} 28. a3 {[%clk 0:00:03]}  Be6 {[%clk 0:00:11]} 29. Nf1 {[%clk 0:00:01]}  Bd5 {[%clk 0:00:11]} 30. Ne3 {[%clk 0:00:02]}  Re2 {[%clk 0:00:11]} 31. Nxd5 {[%clk 0:00:02]}  Re5 {[%clk 0:00:11]} 32. Nc3 {[%clk 0:00:02]}  Rc5 {[%clk 0:00:11]} 33. Ne4 {[%clk 0:00:02]}  Re5 {[%clk 0:00:12]} 34. Ng3 {[%clk 0:00:02]}  Re3 {[%clk 0:00:12]} 35. Kg1 {[%clk 0:00:03]}  Rb3 {[%clk 0:00:11]} 36. Kf2 {[%clk 0:00:03]}  Rb2+ {[%clk 0:00:12]} 37. Kf3 {[%clk 0:00:03]}  Rb3+ {[%clk 0:00:12]} 38. Kf2 {[%clk 0:00:04]}  Rb2+ {[%clk 0:00:12]} 39. Ne2 {[%clk 0:00:04]}  b5 {[%clk 0:00:12]} 40. a4 {[%clk 0:00:05]}  b4 {[%clk 0:00:12]} 41. a5 {[%clk 0:00:06]}  b3 {[%clk 0:00:12]} 42. Ra3 {[%clk 0:00:06]}  Rb1 {[%clk 0:00:12]} 43. Nc3 {[%clk 0:00:06]}  Rb2+ {[%clk 0:00:11]} 44. Kf3 {[%clk 0:00:07]}  Kh7 {[%clk 0:00:11]} 45. a6 {[%clk 0:00:07]}  Kg6 {[%clk 0:00:11]} 46. Nb5 {[%clk 0:00:07]}  Ra2 {[%clk 0:00:10]} 47. Rxb3 {[%clk 0:00:07]}  Rxa6 {[%clk 0:00:11]} 48. Nd4 {[%clk 0:00:06]}  Rd6 {[%clk 0:00:10]} 49. Ke4 {[%clk 0:00:06]}  a6 {[%clk 0:00:10]} 50. Rg3+ {[%clk 0:00:07]}  Kh7 {[%clk 0:00:10]} 51. Rxg7+ {[%clk 0:00:07]}  Kxg7 {[%clk 0:00:10]} 52. Nf5+ {[%clk 0:00:08]}  Kf6 {[%clk 0:00:11]} 53. Nxd6 {[%clk 0:00:08]}  Kg5 {[%clk 0:00:11]} 54. Nf7+ {[%clk 0:00:08]}  Kg6 {[%clk 0:00:11]} 55. Nxh6 {[%clk 0:00:06]}  Kxh6 {[%clk 0:00:10]} 56. h4 {[%clk 0:00:07]} 1-0


[Site "https://www.chess.com"]

[Event "Titled Tuesday Blitz March 08 Early 2022"]
[White "Daianu, Cristian-Clement"]
[Black "Nguyen, Thi Minh Oanh"]
[WhiteFideId "1208926"]
[BlackFideId "12404080"]
[WhiteElo "2159"]
[BlackElo "1825"]
[Result "1-0"]
[Round "05"]
[TimeControl "180+1"]
[Date "2022.03.09"]
[WhiteClock "0:01:08"]
[BlackClock "0:00:01"]

1. d4 {[%clk 0:02:55]}  d5 {[%clk 0:02:59]} 2. Bf4 {[%clk 0:02:55]}  Nf6 {[%clk 0:02:59]} 3. e3 {[%clk 0:02:55]}  e6 {[%clk 0:02:57]} 4. Nc3 {[%clk 0:02:55]}  Bd6 {[%clk 0:02:56]} 5. Bg3 {[%clk 0:02:54]}  c5 {[%clk 0:02:56]} 6. Nf3 {[%clk 0:02:54]}  Nc6 {[%clk 0:02:55]} 7. Bd3 {[%clk 0:02:53]}  cxd4 {[%clk 0:02:50]} 8. exd4 {[%clk 0:02:54]}  Bxg3 {[%clk 0:02:48]} 9. hxg3 {[%clk 0:02:54]}  Qb6 {[%clk 0:02:49]} 10. Qd2 {[%clk 0:02:53]}  Qxb2 {[%clk 0:02:46]} 11. Rb1 {[%clk 0:02:52]}  Qa3 {[%clk 0:02:45]} 12. Ne5 {[%clk 0:02:47]}  Nxd4 {[%clk 0:02:41]} 13. Nb5 {[%clk 0:02:39]}  Nxb5 {[%clk 0:02:41]} 14. Bxb5+ {[%clk 0:02:40]}  Ke7 {[%clk 0:02:41]} 15. O-O {[%clk 0:02:37]}  a6 {[%clk 0:02:40]} 16. Bd3 {[%clk 0:02:36]}  Rd8 {[%clk 0:02:30]} 17. Qg5 {[%clk 0:02:33]}  Kf8 {[%clk 0:02:29]} 18. f4 {[%clk 0:02:31]}  h6 {[%clk 0:02:27]} 19. Qh4 {[%clk 0:02:31]}  Qa4 {[%clk 0:02:16]} 20. g4 {[%clk 0:02:25]}  Qd4+ {[%clk 0:02:08]} 21. Kh1 {[%clk 0:02:23]}  Ke7 {[%clk 0:01:52]} 22. c3 {[%clk 0:02:15]}  Qxc3 {[%clk 0:01:38]} 23. Rbc1 {[%clk 0:02:15]}  Qa5 {[%clk 0:01:38]} 24. g5 {[%clk 0:02:15]}  Ne4 {[%clk 0:00:39]} 25. gxh6+ {[%clk 0:01:52]}  f6 {[%clk 0:00:39]} 26. hxg7 {[%clk 0:01:52]}  Bd7 {[%clk 0:00:38]} 27. Ng4 {[%clk 0:01:46]}  Qd2 {[%clk 0:00:20]} 28. Bxe4 {[%clk 0:01:42]}  Qd4 {[%clk 0:00:20]} 29. Bg6 {[%clk 0:01:34]}  Rg8 {[%clk 0:00:19]} 30. Qh6 {[%clk 0:01:14]}  Rad8 {[%clk 0:00:06]} 31. Bh7 {[%clk 0:01:13]}  e5 {[%clk 0:00:04]} 32. Bxg8 {[%clk 0:01:12]}  Bxg4 {[%clk 0:00:03]} 33. fxe5 {[%clk 0:01:09]}  Qxe5 {[%clk 0:00:01]} 34. Rce1 {[%clk 0:01:08]} 1-0


[Site "https://www.chess.com"]

[Event "Titled Tuesday Blitz March 08 Early 2022"]
[White "Dejmek, Mark"]
[Black "Piliczewski, Bogusz"]
[WhiteFideId "2017628"]
[BlackFideId "1104144"]
[WhiteElo "2234"]
[BlackElo "1896"]
[Result "1-0"]
[Round "05"]
[TimeControl "180+1"]
[Date "2022.03.09"]
[WhiteClock "0:01:05"]
[BlackClock "0:00:54"]

1. Nf3 {[%clk 0:02:59]}  d5 {[%clk 0:02:59]} 2. c4 {[%clk 0:02:55]}  c6 {[%clk 0:02:59]} 3. Qc2 {[%clk 0:02:51]}  Nf6 {[%clk 0:02:58]} 4. g3 {[%clk 0:02:49]}  g6 {[%clk 0:02:58]} 5. b3 {[%clk 0:02:46]}  Bf5 {[%clk 0:02:57]} 6. d3 {[%clk 0:02:45]}  Bg7 {[%clk 0:02:56]} 7. Bb2 {[%clk 0:02:46]}  O-O {[%clk 0:02:56]} 8. Bg2 {[%clk 0:02:46]}  Nbd7 {[%clk 0:02:41]} 9. O-O {[%clk 0:02:43]}  Rc8 {[%clk 0:02:38]} 10. Nbd2 {[%clk 0:02:39]}  Qc7 {[%clk 0:02:25]} 11. Nd4 {[%clk 0:02:29]}  e6 {[%clk 0:02:15]} 12. Nxf5 {[%clk 0:02:27]}  gxf5 {[%clk 0:02:14]} 13. Rac1 {[%clk 0:02:17]}  Qb6 {[%clk 0:02:03]} 14. Nf3 {[%clk 0:02:10]}  Rfd8 {[%clk 0:01:55]} 15. Ne5 {[%clk 0:02:04]}  Bh6 {[%clk 0:01:45]} 16. e3 {[%clk 0:01:48]}  Bxe3 {[%clk 0:01:25]} 17. Nxd7 {[%clk 0:01:40]}  Bxf2+ {[%clk 0:01:19]} 18. Qxf2 {[%clk 0:01:34]}  Qxf2+ {[%clk 0:01:17]} 19. Rxf2 {[%clk 0:01:31]}  Nxd7 {[%clk 0:01:16]} 20. cxd5 {[%clk 0:01:27]}  cxd5 {[%clk 0:01:15]} 21. Rfc2 {[%clk 0:01:25]}  Rxc2 {[%clk 0:01:08]} 22. Rxc2 {[%clk 0:01:26]}  b6 {[%clk 0:00:58]} 23. Rc7 {[%clk 0:01:16]}  Nc5 {[%clk 0:00:57]} 24. Bf6 {[%clk 0:01:15]}  Rd7 {[%clk 0:00:54]} 25. Rc8+ {[%clk 0:01:05]} 1-0


[Site "https://www.chess.com"]

[Event "Titled Tuesday Blitz March 08 Early 2022"]
[White "Domingo Nunez, Alejandro"]
[Black "Vogel, Roven"]
[WhiteFideId "22245561"]
[BlackFideId "12908088"]
[WhiteElo "2215"]
[BlackElo "2516"]
[Result "1/2-1/2"]
[Round "05"]
[TimeControl "180+1"]
[Date "2022.03.09"]
[WhiteClock "0:00:05"]
[BlackClock "0:00:27"]

1. Nf3 {[%clk 0:02:57]}  d5 {[%clk 0:02:59]} 2. g3 {[%clk 0:02:56]}  Bg4 {[%clk 0:02:59]} 3. Bg2 {[%clk 0:02:55]}  Nd7 {[%clk 0:02:59]} 4. a4 {[%clk 0:02:54]}  Ngf6 {[%clk 0:02:57]} 5. d4 {[%clk 0:02:52]}  e6 {[%clk 0:02:57]} 6. b3 {[%clk 0:02:46]}  Bd6 {[%clk 0:02:56]} 7. Bb2 {[%clk 0:02:46]}  O-O {[%clk 0:02:55]} 8. O-O {[%clk 0:02:45]}  c6 {[%clk 0:02:54]} 9. Nbd2 {[%clk 0:02:40]}  Qe7 {[%clk 0:02:53]} 10. Ne5 {[%clk 0:02:37]}  Bh5 {[%clk 0:02:52]} 11. c4 {[%clk 0:02:04]}  a5 {[%clk 0:02:51]} 12. Re1 {[%clk 0:01:53]}  Bb4 {[%clk 0:02:50]} 13. Nd3 {[%clk 0:01:54]}  Bd6 {[%clk 0:02:49]} 14. Qc2 {[%clk 0:01:52]}  Rfc8 {[%clk 0:02:48]} 15. e4 {[%clk 0:01:50]}  dxe4 {[%clk 0:02:47]} 16. Nxe4 {[%clk 0:01:50]}  Nxe4 {[%clk 0:02:46]} 17. Rxe4 {[%clk 0:01:46]}  Bg6 {[%clk 0:02:46]} 18. Re3 {[%clk 0:01:46]}  Qd8 {[%clk 0:02:46]} 19. Qe2 {[%clk 0:01:43]}  Bf8 {[%clk 0:02:43]} 20. Nf4 {[%clk 0:01:41]}  Nf6 {[%clk 0:02:43]} 21. h4 {[%clk 0:01:39]}  Bf5 {[%clk 0:02:42]} 22. Bf3 {[%clk 0:01:36]}  Bd6 {[%clk 0:02:31]} 23. Nd3 {[%clk 0:01:34]}  Bxd3 {[%clk 0:02:26]} 24. Rxd3 {[%clk 0:01:35]}  Bf8 {[%clk 0:02:23]} 25. Rad1 {[%clk 0:01:35]}  Qe7 {[%clk 0:02:04]} 26. Kg2 {[%clk 0:01:24]}  Rd8 {[%clk 0:02:01]} 27. Qe1 {[%clk 0:01:25]}  Qb4 {[%clk 0:02:00]} 28. Qe5 {[%clk 0:01:05]}  Bd6 {[%clk 0:01:56]} 29. Qg5 {[%clk 0:01:05]}  h6 {[%clk 0:01:56]} 30. Qe3 {[%clk 0:01:04]}  Be7 {[%clk 0:01:55]} 31. Qe5 {[%clk 0:00:50]}  Qd6 {[%clk 0:01:50]} 32. Qe2 {[%clk 0:00:50]}  Qc7 {[%clk 0:01:49]} 33. Bc1 {[%clk 0:00:45]}  Rd7 {[%clk 0:01:48]} 34. Bf4 {[%clk 0:00:45]}  Bd6 {[%clk 0:01:48]} 35. Be5 {[%clk 0:00:44]}  Qd8 {[%clk 0:01:45]} 36. Qe3 {[%clk 0:00:35]}  Qe7 {[%clk 0:01:44]} 37. Bxd6 {[%clk 0:00:33]}  Rxd6 {[%clk 0:01:43]} 38. d5 {[%clk 0:00:33]}  cxd5 {[%clk 0:01:40]} 39. cxd5 {[%clk 0:00:33]}  Re8 {[%clk 0:01:40]} 40. dxe6 {[%clk 0:00:33]}  Rxe6 {[%clk 0:01:41]} 41. Qf4 {[%clk 0:00:32]}  Re5 {[%clk 0:01:35]} 42. Rd6 {[%clk 0:00:30]}  Re6 {[%clk 0:01:30]} 43. Rxe6 {[%clk 0:00:29]}  Qxe6 {[%clk 0:01:31]} 44. Rd3 {[%clk 0:00:25]}  b6 {[%clk 0:01:29]} 45. Qd4 {[%clk 0:00:22]}  Rb8 {[%clk 0:01:21]} 46. Rc3 {[%clk 0:00:19]}  h5 {[%clk 0:01:17]} 47. Qf4 {[%clk 0:00:18]}  Re8 {[%clk 0:01:12]} 48. Re3 {[%clk 0:00:18]}  Nd5 {[%clk 0:01:09]} 49. Bxd5 {[%clk 0:00:15]}  Qxd5+ {[%clk 0:01:10]} 50. Qf3 {[%clk 0:00:15]}  Qxf3+ {[%clk 0:01:07]} 51. Kxf3 {[%clk 0:00:16]}  Rc8 {[%clk 0:01:07]} 52. Re5 {[%clk 0:00:17]}  Rc3+ {[%clk 0:01:06]} 53. Re3 {[%clk 0:00:17]}  Rc5 {[%clk 0:01:06]} 54. Ke4 {[%clk 0:00:12]}  g6 {[%clk 0:01:06]} 55. Kd4 {[%clk 0:00:13]}  Kf8 {[%clk 0:01:06]} 56. Rc3 {[%clk 0:00:13]}  Rf5 {[%clk 0:01:03]} 57. f4 {[%clk 0:00:13]}  Ke7 {[%clk 0:01:01]} 58. Rc6 {[%clk 0:00:13]}  b5 {[%clk 0:00:51]} 59. Rc5 {[%clk 0:00:12]}  bxa4 {[%clk 0:00:44]} 60. bxa4 {[%clk 0:00:13]}  Kd6 {[%clk 0:00:42]} 61. Re5 {[%clk 0:00:05]}  Rxe5 {[%clk 0:00:36]} 62. fxe5+ {[%clk 0:00:05]}  Ke6 {[%clk 0:00:31]} 63. Ke4 {[%clk 0:00:06]}  f6 {[%clk 0:00:26]} 64. exf6 {[%clk 0:00:05]}  Kxf6 {[%clk 0:00:27]} 65. Kf4 {[%clk 0:00:04]}  Ke6 {[%clk 0:00:27]} 66. Kg5 {[%clk 0:00:04]}  Kf7 {[%clk 0:00:27]} 67. Kf4 {[%clk 0:00:01]}  Kf6 {[%clk 0:00:27]} 68. Ke4 {[%clk 0:00:02]}  g5 {[%clk 0:00:27]} 69. hxg5+ {[%clk 0:00:02]}  Kxg5 {[%clk 0:00:27]} 70. Kf3 {[%clk 0:00:03]}  Kf5 {[%clk 0:00:27]} 71. Ke3 {[%clk 0:00:03]}  Ke5 {[%clk 0:00:28]} 72. Kf3 {[%clk 0:00:03]}  Kf5 {[%clk 0:00:27]} 73. Ke3 {[%clk 0:00:04]}  Kg4 {[%clk 0:00:27]} 74. Kf2 {[%clk 0:00:04]}  Kg5 {[%clk 0:00:27]} 75. Kf3 {[%clk 0:00:04]}  Kg6 {[%clk 0:00:27]} 76. Kf4 {[%clk 0:00:05]}  Kf6 {[%clk 0:00:27]} 77. Ke4 {[%clk 0:00:05]}  Kg5 {[%clk 0:00:27]} 78. Kf3 {[%clk 0:00:05]} 1/2-1/2


[Site "https://www.chess.com"]

[Event "Titled Tuesday Blitz March 08 Early 2022"]
[White "Dwilewicz, Katarzyna"]
[Black "Tarhan, Adar"]
[WhiteFideId "1148486"]
[BlackFideId "34544712"]
[WhiteElo "1907"]
[BlackElo "1802"]
[Result "0-1"]
[Round "05"]
[TimeControl "180+1"]
[Date "2022.03.09"]
[WhiteClock "0:00:15"]
[BlackClock "0:02:14"]

1. e4 {[%clk 0:03:00]}  c6 {[%clk 0:02:59]} 2. d4 {[%clk 0:02:58]}  d5 {[%clk 0:03:00]} 3. e5 {[%clk 0:02:59]}  Bf5 {[%clk 0:03:00]} 4. h4 {[%clk 0:02:58]}  h5 {[%clk 0:03:00]} 5. Nf3 {[%clk 0:02:54]}  e6 {[%clk 0:02:58]} 6. Bg5 {[%clk 0:02:54]}  Be7 {[%clk 0:02:57]} 7. Nc3 {[%clk 0:02:50]}  Nd7 {[%clk 0:02:55]} 8. Qd2 {[%clk 0:02:43]}  Qb6 {[%clk 0:02:46]} 9. O-O-O {[%clk 0:02:40]}  a5 {[%clk 0:02:35]} 10. Na4 {[%clk 0:01:37]}  Qa7 {[%clk 0:02:34]} 11. Bd3 {[%clk 0:01:23]}  b5 {[%clk 0:02:30]} 12. Bxf5 {[%clk 0:01:22]}  bxa4 {[%clk 0:02:31]} 13. Bd3 {[%clk 0:01:17]}  Rb8 {[%clk 0:02:30]} 14. Kb1 {[%clk 0:01:08]}  Qb6 {[%clk 0:02:27]} 15. b3 {[%clk 0:00:50]}  axb3 {[%clk 0:02:28]} 16. cxb3 {[%clk 0:00:44]}  a4 {[%clk 0:02:27]} 17. Bc2 {[%clk 0:00:44]}  axb3 {[%clk 0:02:27]} 18. Bxb3 {[%clk 0:00:45]}  c5 {[%clk 0:02:27]} 19. Ka1 {[%clk 0:00:29]}  c4 {[%clk 0:02:25]} 20. Ba4 {[%clk 0:00:29]}  Bb4 {[%clk 0:02:22]} 21. Qc2 {[%clk 0:00:24]}  Qa5 {[%clk 0:02:17]} 22. Rb1 {[%clk 0:00:23]}  Bc3+ {[%clk 0:02:15]} 23. Rb2 {[%clk 0:00:18]}  Rxb2 {[%clk 0:02:13]} 24. Bxd7+ {[%clk 0:00:15]}  Kxd7 {[%clk 0:02:14]} 0-1


[Site "https://www.chess.com"]

[Event "Titled Tuesday Blitz March 08 Early 2022"]
[White "Erigaisi Arjun"]
[Black "Dubov, Daniil"]
[WhiteFideId "35009192"]
[BlackFideId "24126055"]
[WhiteElo "2913"]
[BlackElo "3007"]
[Result "1-0"]
[Round "05"]
[TimeControl "180+1"]
[Date "2022.03.08"]
[WhiteClock "0:00:31"]
[BlackClock "0:00:04"]

1. e4 {[%clk 0:02:55]}  c5 {[%clk 0:02:59]} 2. Nf3 {[%clk 0:02:54]}  e6 {[%clk 0:03:00]} 3. b3 {[%clk 0:02:54]}  d6 {[%clk 0:02:58]} 4. Bb2 {[%clk 0:02:54]}  Bd7 {[%clk 0:02:58]} 5. Bd3 {[%clk 0:02:52]}  Nc6 {[%clk 0:02:56]} 6. O-O {[%clk 0:02:52]}  Nf6 {[%clk 0:02:55]} 7. Re1 {[%clk 0:02:52]}  e5 {[%clk 0:02:53]} 8. Nc3 {[%clk 0:02:48]}  Be7 {[%clk 0:02:52]} 9. Bc4 {[%clk 0:02:48]}  O-O {[%clk 0:02:52]} 10. Nd5 {[%clk 0:02:48]}  Nxd5 {[%clk 0:02:42]} 11. Bxd5 {[%clk 0:02:48]}  Bf6 {[%clk 0:02:42]} 12. c3 {[%clk 0:02:44]}  Rc8 {[%clk 0:02:40]} 13. d3 {[%clk 0:02:36]}  Re8 {[%clk 0:02:15]} 14. Qd2 {[%clk 0:02:34]}  Bg4 {[%clk 0:02:12]} 15. Re3 {[%clk 0:02:32]}  Qd7 {[%clk 0:02:10]} 16. h3 {[%clk 0:02:31]}  Be6 {[%clk 0:02:08]} 17. c4 {[%clk 0:02:24]}  g6 {[%clk 0:01:55]} 18. Kh2 {[%clk 0:02:21]}  Bg7 {[%clk 0:01:49]} 19. Ree1 {[%clk 0:02:20]}  h6 {[%clk 0:01:45]} 20. Ng1 {[%clk 0:02:19]}  Qe7 {[%clk 0:01:26]} 21. Ne2 {[%clk 0:02:15]}  Bxd5 {[%clk 0:01:12]} 22. exd5 {[%clk 0:02:15]}  Nb8 {[%clk 0:01:10]} 23. f4 {[%clk 0:02:09]}  Nd7 {[%clk 0:01:10]} 24. Ng3 {[%clk 0:02:02]}  f5 {[%clk 0:01:07]} 25. fxe5 {[%clk 0:01:53]}  Nxe5 {[%clk 0:01:05]} 26. Kg1 {[%clk 0:01:26]}  Qh4 {[%clk 0:01:05]} 27. Nf1 {[%clk 0:01:22]}  Re7 {[%clk 0:01:01]} 28. Re2 {[%clk 0:01:12]}  Rce8 {[%clk 0:01:00]} 29. Rae1 {[%clk 0:01:13]}  Qg5 {[%clk 0:00:47]} 30. Qxg5 {[%clk 0:01:05]}  hxg5 {[%clk 0:00:48]} 31. Bxe5 {[%clk 0:01:02]}  Bxe5 {[%clk 0:00:47]} 32. Nd2 {[%clk 0:01:00]}  g4 {[%clk 0:00:40]} 33. hxg4 {[%clk 0:00:59]}  fxg4 {[%clk 0:00:41]} 34. Ne4 {[%clk 0:00:53]}  Kg7 {[%clk 0:00:34]} 35. g3 {[%clk 0:00:52]}  Rf8 {[%clk 0:00:18]} 36. Nxd6 {[%clk 0:00:47]}  Bd4+ {[%clk 0:00:15]} 37. Kg2 {[%clk 0:00:40]}  Rf2+ {[%clk 0:00:15]} 38. Rxf2 {[%clk 0:00:40]}  Rxe1 {[%clk 0:00:16]} 39. Rf7+ {[%clk 0:00:41]}  Kh6 {[%clk 0:00:15]} 40. Rxb7 {[%clk 0:00:41]}  Rg1+ {[%clk 0:00:13]} 41. Kh2 {[%clk 0:00:41]}  Rf1 {[%clk 0:00:13]} 42. Ne4 {[%clk 0:00:34]}  Re1 {[%clk 0:00:12]} 43. d6 {[%clk 0:00:30]}  Re2+ {[%clk 0:00:04]} 44. Kh1 {[%clk 0:00:31]} 1-0


[Site "https://www.chess.com"]

[Event "Titled Tuesday Blitz March 08 Early 2022"]
[White "Estrada Nieto, Julian"]
[Black "Papasimakopoulos, Alexandros"]
[WhiteFideId "5101018"]
[BlackFideId "4244125"]
[WhiteElo "2246"]
[BlackElo "2340"]
[Result "0-1"]
[Round "05"]
[TimeControl "180+1"]
[Date "2022.03.09"]
[WhiteClock "0:00:09"]
[BlackClock "0:00:14"]

1. e4 {[%clk 0:03:00]}  e6 {[%clk 0:03:00]} 2. d4 {[%clk 0:03:00]}  d5 {[%clk 0:02:58]} 3. Nd2 {[%clk 0:03:00]}  Be7 {[%clk 0:02:58]} 4. Bd3 {[%clk 0:02:59]}  c5 {[%clk 0:02:57]} 5. dxc5 {[%clk 0:02:57]}  Bxc5 {[%clk 0:02:57]} 6. Ngf3 {[%clk 0:02:55]}  Nc6 {[%clk 0:02:56]} 7. Qe2 {[%clk 0:02:55]}  Nf6 {[%clk 0:02:51]} 8. O-O {[%clk 0:02:51]}  a6 {[%clk 0:02:51]} 9. c3 {[%clk 0:02:45]}  h6 {[%clk 0:02:42]} 10. e5 {[%clk 0:02:37]}  Nd7 {[%clk 0:02:40]} 11. Nb3 {[%clk 0:02:36]}  Be7 {[%clk 0:02:37]} 12. Bc2 {[%clk 0:02:25]}  b5 {[%clk 0:02:32]} 13. Nbd4 {[%clk 0:02:17]}  Bb7 {[%clk 0:02:27]} 14. Nxc6 {[%clk 0:02:11]}  Bxc6 {[%clk 0:02:27]} 15. Nd4 {[%clk 0:02:11]}  Bb7 {[%clk 0:02:25]} 16. Nxe6 {[%clk 0:02:05]}  fxe6 {[%clk 0:02:21]} 17. Bg6+ {[%clk 0:02:04]}  Kf8 {[%clk 0:02:21]} 18. Qf3+ {[%clk 0:02:01]}  Bf6 {[%clk 0:02:20]} 19. exf6 {[%clk 0:01:58]}  Qxf6 {[%clk 0:02:19]} 20. Qg3 {[%clk 0:01:54]}  Ne5 {[%clk 0:02:07]} 21. Bc2 {[%clk 0:01:53]}  Rc8 {[%clk 0:02:04]} 22. Bf4 {[%clk 0:01:38]}  Nf7 {[%clk 0:02:03]} 23. Rfe1 {[%clk 0:01:33]}  Ke7 {[%clk 0:01:28]} 24. Bg6 {[%clk 0:01:08]}  Rhe8 {[%clk 0:01:22]} 25. Bxf7 {[%clk 0:00:56]}  Kxf7 {[%clk 0:01:23]} 26. Be5 {[%clk 0:00:53]}  Qg6 {[%clk 0:01:23]} 27. Qf4+ {[%clk 0:00:48]}  Qf5 {[%clk 0:01:10]} 28. Qg3 {[%clk 0:00:47]}  Qg6 {[%clk 0:01:05]} 29. Qf4+ {[%clk 0:00:46]}  Kg8 {[%clk 0:00:58]} 30. Re3 {[%clk 0:00:46]}  Rc4 {[%clk 0:00:47]} 31. Rg3 {[%clk 0:00:39]}  Rxf4 {[%clk 0:00:29]} 32. Rxg6 {[%clk 0:00:38]}  Rf7 {[%clk 0:00:30]} 33. a4 {[%clk 0:00:32]}  Kh7 {[%clk 0:00:29]} 34. Rg3 {[%clk 0:00:31]}  Bc6 {[%clk 0:00:29]} 35. axb5 {[%clk 0:00:30]}  Bxb5 {[%clk 0:00:30]} 36. f4 {[%clk 0:00:28]}  Rb7 {[%clk 0:00:25]} 37. b4 {[%clk 0:00:23]}  Rc8 {[%clk 0:00:24]} 38. h4 {[%clk 0:00:18]}  Rc4 {[%clk 0:00:19]} 39. Rd1 {[%clk 0:00:16]}  Re4 {[%clk 0:00:19]} 40. Rd2 {[%clk 0:00:11]}  Re1+ {[%clk 0:00:18]} 41. Kh2 {[%clk 0:00:11]}  Rf1 {[%clk 0:00:15]} 42. Rg4 {[%clk 0:00:10]}  Rf7 {[%clk 0:00:15]} 43. Rf2 {[%clk 0:00:10]}  Rxf2 {[%clk 0:00:14]} 44. Kg3 {[%clk 0:00:09]}  Rc2 {[%clk 0:00:14]} 0-1


[Site "https://www.chess.com"]

[Event "Titled Tuesday Blitz March 08 Early 2022"]
[White "Flis, Pawel"]
[Black "Quirke, Jeffrey"]
[WhiteFideId "1112864"]
[BlackFideId "2013029"]
[WhiteElo "1735"]
[BlackElo "2114"]
[Result "0-1"]
[Round "05"]
[TimeControl "180+1"]
[Date "2022.03.09"]
[WhiteClock "0:00:01"]
[BlackClock "0:00:08"]

1. e4 {[%clk 0:03:00]}  c5 {[%clk 0:02:58]} 2. d4 {[%clk 0:03:00]}  cxd4 {[%clk 0:02:57]} 3. Nf3 {[%clk 0:03:00]}  e6 {[%clk 0:02:56]} 4. Nxd4 {[%clk 0:02:59]}  a6 {[%clk 0:02:56]} 5. Nc3 {[%clk 0:02:59]}  b5 {[%clk 0:02:55]} 6. Be2 {[%clk 0:02:56]}  Bb7 {[%clk 0:02:55]} 7. Bf3 {[%clk 0:02:53]}  Nc6 {[%clk 0:02:50]} 8. O-O {[%clk 0:02:52]}  Ne5 {[%clk 0:02:47]} 9. Bf4 {[%clk 0:02:30]}  d6 {[%clk 0:02:47]} 10. Bxe5 {[%clk 0:02:23]}  dxe5 {[%clk 0:02:46]} 11. Nb3 {[%clk 0:02:23]}  Nf6 {[%clk 0:02:37]} 12. Re1 {[%clk 0:02:15]}  Be7 {[%clk 0:02:35]} 13. Qe2 {[%clk 0:02:01]}  O-O {[%clk 0:02:32]} 14. Rad1 {[%clk 0:02:01]}  Qc7 {[%clk 0:02:32]} 15. Nb1 {[%clk 0:01:54]}  Rfd8 {[%clk 0:02:24]} 16. c3 {[%clk 0:01:53]}  Bc6 {[%clk 0:02:07]} 17. N1d2 {[%clk 0:01:51]}  Qb6 {[%clk 0:02:03]} 18. Nf1 {[%clk 0:01:50]}  a5 {[%clk 0:02:00]} 19. Ng3 {[%clk 0:01:35]}  a4 {[%clk 0:01:58]} 20. Nd2 {[%clk 0:01:31]}  a3 {[%clk 0:01:45]} 21. b3 {[%clk 0:01:30]}  h6 {[%clk 0:01:41]} 22. c4 {[%clk 0:01:29]}  Bc5 {[%clk 0:01:34]} 23. Rf1 {[%clk 0:01:13]}  b4 {[%clk 0:01:33]} 24. Rfe1 {[%clk 0:01:06]}  Rd4 {[%clk 0:01:30]} 25. Ndf1 {[%clk 0:01:04]}  Rad8 {[%clk 0:01:29]} 26. Rxd4 {[%clk 0:01:03]}  Rxd4 {[%clk 0:01:24]} 27. Ne3 {[%clk 0:00:49]}  Qd8 {[%clk 0:01:22]} 28. Rd1 {[%clk 0:00:43]}  Rxd1+ {[%clk 0:01:22]} 29. Qxd1 {[%clk 0:00:43]}  Qxd1+ {[%clk 0:01:21]} 30. Nxd1 {[%clk 0:00:43]}  Bd4 {[%clk 0:01:21]} 31. Kf1 {[%clk 0:00:41]}  Nd7 {[%clk 0:01:20]} 32. Ke2 {[%clk 0:00:40]}  Nc5 {[%clk 0:01:20]} 33. Ne3 {[%clk 0:00:34]}  Bxe3 {[%clk 0:01:13]} 34. Kxe3 {[%clk 0:00:32]}  Nxb3 {[%clk 0:01:13]} 35. Ne2 {[%clk 0:00:23]}  Nc5 {[%clk 0:00:53]} 36. Nc1 {[%clk 0:00:18]}  Ba4 {[%clk 0:00:49]} 37. Kd2 {[%clk 0:00:18]}  Kf8 {[%clk 0:00:44]} 38. g4 {[%clk 0:00:14]}  Ke7 {[%clk 0:00:43]} 39. Bg2 {[%clk 0:00:13]}  Kd6 {[%clk 0:00:42]} 40. f3 {[%clk 0:00:13]}  Kc6 {[%clk 0:00:36]} 41. Bf1 {[%clk 0:00:14]}  Nd7 {[%clk 0:00:35]} 42. Bd3 {[%clk 0:00:13]}  Kc5 {[%clk 0:00:35]} 43. Ne2 {[%clk 0:00:06]}  Nb6 {[%clk 0:00:31]} 44. Kc1 {[%clk 0:00:06]}  Nxc4 {[%clk 0:00:31]} 45. Bxc4 {[%clk 0:00:06]}  Kxc4 {[%clk 0:00:31]} 46. Ng3 {[%clk 0:00:05]}  b3 {[%clk 0:00:25]} 47. axb3+ {[%clk 0:00:05]}  Kxb3 {[%clk 0:00:24]} 48. Kb1 {[%clk 0:00:05]}  g6 {[%clk 0:00:14]} 49. h4 {[%clk 0:00:04]}  Kc3 {[%clk 0:00:10]} 50. Ka2 {[%clk 0:00:02]}  Kd3 {[%clk 0:00:09]} 51. Kxa3 {[%clk 0:00:01]}  Bd1 {[%clk 0:00:08]} 0-1


[Site "https://www.chess.com"]